bitfinex-derivatives/quotes_BTCF0:USTF0_20210703
["timestamp","ask_amount","ask_price","bid_price","bid_amount"]
[1625273931211,1.23094262,33484.0,33480.0,0.29957544]
[1625273931612,0.19795,33484.0,33480.0,0.29957544]
[1625273932111,1.03264957,33484.0,33480.0,0.29957544]
[1625273932214,1.23626957,33484.0,33480.0,0.24057544]
[1625273932315,1.23626957,33484.0,33483.0,0.24057544]
[1625273932615,1.29526957,33484.0,33483.0,0.24057544]
[1625273932718,0.26262,33484.0,33483.0,0.24057544]
[1625273932816,0.20362,33484.0,33483.0,0.24057544]
[1625273933367,1.236545,33484.0,33483.0,0.24057544]
[1625273934424,1.236545,33484.0,33483.0,7.544e-05]
[1625273934523,1.295545,33484.0,33483.0,7.544e-05]
[1625273934623,1.354545,33484.0,33483.0,7.544e-05]
[1625273934726,2.7304165,33484.0,33483.0,7.544e-05]
[1625273934824,2.7304165,33484.0,33480.0,0.24057544]
[1625273935229,1.03145275,33481.0,33480.0,0.24057544]
[1625273935377,1.14945275,33481.0,33480.0,0.24057544]
[1625273936029,2.52255122,33481.0,33480.0,0.24057544]
[1625273936380,2.76312666,33481.0,33480.0,0.24057544]
[1625273936880,2.70412666,33481.0,33480.0,0.24057544]
[1625273938084,2.65623219,33481.0,33480.0,0.24057544]
[1625273938385,2.64512666,33481.0,33480.0,0.24057544]
[1625273938687,1.27202819,33481.0,33480.0,0.24057544]
[1625273940439,1.03145275,33481.0,33480.0,0.24057544]
[1625273940539,1.03145275,33481.0,33480.0,0.53369544]
[1625273942343,1.03145275,33481.0,33480.0,0.5402667]
[1625273942593,1.03145275,33481.0,33480.0,0.53369544]
[1625273942843,1.03145275,33481.0,33480.0,0.54026665]
[1625273943396,1.03145275,33481.0,33480.0,0.53369544]
[1625273943495,1.03145275,33481.0,33480.0,0.24057544]
[1625273943945,1.03145275,33481.0,33480.0,0.24714692]
[1625273944345,1.03145275,33481.0,33480.0,0.43855692]
[1625273944597,1.03145275,33481.0,33480.0,0.49755692]
[1625273945848,1.03210182,33483.0,33480.0,0.49755692]
[1625273946349,1.03176022,33484.0,33482.0,0.24057544]
[1625273946851,1.03176022,33484.0,33483.0,0.00657064]
[1625273947654,1.37622615,33488.0,33483.0,0.00657064]
[1625273947754,1.43522615,33488.0,33483.0,0.00657064]
[1625273948055,1.03213085,33484.0,33483.0,0.00657064]
[1625273948357,1.03213085,33484.0,33483.0,0.24714608]
[1625273951909,0.23476545,33485.0,33483.0,0.24714608]
[1625273952010,0.23476545,33485.0,33483.0,0.61374608]
[1625273952212,0.23476545,33485.0,33483.0,0.67274608]
[1625273952361,0.23476545,33485.0,33484.0,0.00656992]
[1625273952465,0.23476545,33485.0,33484.0,0.06556992]
[1625273952562,1.03313989,33486.0,33484.0,0.06556992]
[1625273952812,1.03313989,33486.0,33485.0,0.00656979]
[1625273952912,1.03313989,33486.0,33485.0,0.06556979]
[1625273953119,1.37746246,33490.0,33485.0,0.06556979]
[1625273953219,1.43692311,33491.0,33485.0,4.99496979]
[1625273953418,1.37792311,33491.0,33486.0,0.00656958]
[1625273954070,1.43692311,33491.0,33486.0,0.00656958]
[1625273954471,1.43692311,33491.0,33490.0,0.72172632]
[1625273955073,1.43692311,33491.0,33490.0,0.97819632]
[1625273956425,1.37792311,33491.0,33490.0,0.97819632]
[1625273956776,1.55014197,33494.0,33490.0,1.03719632]
[1625273956879,1.55014197,33494.0,33490.0,1.10276706]
[1625273957028,0.10622646,33494.0,33490.0,1.10276706]
[1625273957126,0.10622646,33494.0,33491.0,0.0065703]
[1625273957226,0.10622646,33494.0,33491.0,0.1245703]
[1625273957678,1.72236083,33499.0,33492.0,0.00657825]
[1625273957827,0.35857544,33509.0,33492.0,0.12457825]
[1625273958179,0.35857544,33509.0,33493.0,0.006578]
[1625273958280,0.29957544,33509.0,33493.0,0.124578]
[1625273958528,0.29957544,33509.0,33508.0,0.72172632]
[1625273958630,0.35857544,33509.0,33508.0,0.99648632]
[1625273958730,0.29957544,33509.0,33508.0,0.99648632]
[1625273958829,1.72671241,33512.0,33508.0,0.99648632]
[1625273959283,1.72400847,33514.0,33508.0,0.99648632]
[1625273959430,1.78300847,33514.0,33508.0,0.99648632]
[1625273959785,0.059,33514.0,33508.0,0.99648632]
[1625273960231,0.69058536,33509.0,33508.0,0.99648632]
[1625273962131,0.69058536,33509.0,33508.0,0.72172632]
[1625273967291,0.69058536,33509.0,33508.0,1.01314632]
[1625273970797,0.69058536,33509.0,33508.0,1.07214632]
[1625273971899,0.69058536,33509.0,33508.0,1.01314632]
[1625273971999,0.69058536,33509.0,33508.0,1.07214632]
[1625273972099,0.69058536,33509.0,33508.0,1.01314632]
[1625273972349,1.8999659,33509.0,33508.0,1.01314632]
[1625273972955,2.2089759,33509.0,33508.0,1.01314632]
[1625273973051,2.2089759,33509.0,33508.0,0.72172632]
[1625273973807,3.58993086,33509.0,33508.0,0.72172632]
[1625273975307,3.58993086,33509.0,33508.0,0.97843632]
[1625273975707,2.2089759,33509.0,33508.0,0.97843632]
[1625273975807,1.8999659,33509.0,33508.0,0.97843632]
[1625273976361,2.1001859,33509.0,33508.0,0.72172632]
[1625273977010,3.48056773,33509.0,33508.0,0.72172632]
[1625273982675,4.51477592,33509.0,33508.0,0.72172632]
[1625273983976,4.51477592,33509.0,33508.0,0.93680632]
[1625273984628,3.13439409,33509.0,33508.0,0.93680632]
[1625273985330,3.13439409,33509.0,33508.0,0.72172632]
[1625273985531,4.51459671,33509.0,33508.0,0.72172632]
[1625273985982,3.13439409,33509.0,33508.0,0.72172632]
[1625273986080,3.14544585,33509.0,33508.0,0.72830868]
[1625273987684,3.66349553,33509.0,33508.0,0.72830868]
[1625273988734,3.66349553,33509.0,33508.0,1.00667868]
[1625273992646,3.66349553,33509.0,33508.0,0.72830868]
[1625273994952,3.66349553,33509.0,33508.0,0.78730868]
[1625273997359,5.04819999,33509.0,33508.0,0.78730868]
[1625274000264,5.04819999,33509.0,33508.0,0.72830868]
[1625274000364,5.04819999,33509.0,33508.0,0.78730868]
[1625274008284,5.04819999,33509.0,33508.0,0.72830868]
[1625274008387,5.04819999,33509.0,33508.0,0.78730868]
[1625274008888,6.60756162,33509.0,33508.0,0.78730868]
[1625274012293,6.66656162,33509.0,33508.0,0.78730868]
[1625274012443,6.66656162,33509.0,33508.0,0.72830868]
[1625274012642,6.72556162,33509.0,33508.0,0.72830868]
[1625274012745,6.96613706,33509.0,33508.0,0.72830868]
[1625274013041,6.96613706,33509.0,33508.0,0.72172632]
[1625274013292,6.99493301,33509.0,33508.0,0.72172632]
[1625274013396,8.72758539,33509.0,33508.0,0.48115088]
[1625274013541,8.69878944,33509.0,33508.0,0.48115088]
[1625274013993,8.72878944,33509.0,33508.0,0.48115088]
[1625274014100,8.75758588,33509.0,33508.0,0.48115088]
[1625274014196,8.93538209,33509.0,33508.0,0.48115088]
[1625274014349,8.93538209,33509.0,33495.0,1.8778]
[1625274014446,9.43538209,33509.0,33495.0,1.8778]
[1625274014544,0.03,33508.0,33495.0,1.8778]
[1625274014644,0.06984931,33508.0,33496.0,0.00658549]
[1625274014794,1.01919632,33497.0,33496.0,0.00658549]
[1625274014896,7.5425205,33497.0,33496.0,0.00658549]
[1625274015146,7.5535729,33497.0,33496.0,0.00658549]
[1625274015247,11.7164729,33497.0,33496.0,0.00658549]
[1625274015697,11.7054205,33497.0,33495.0,1.8778]
[1625274015797,7.5425205,33497.0,33495.0,1.8778]
[1625274016497,8.13699387,33496.0,33495.0,1.8778]
[1625274016597,8.25499387,33496.0,33495.0,1.8778]
[1625274017147,8.19599387,33496.0,33495.0,1.8778]
[1625274017397,8.13699387,33496.0,33495.0,1.8778]
[1625274017499,8.19599387,33496.0,33495.0,1.8778]
[1625274017599,8.13699387,33496.0,33495.0,1.8778]
[1625274017700,6.40580329,33496.0,33495.0,1.8778]
[1625274017798,6.46480329,33496.0,33495.0,1.8778]
[1625274018954,6.40580329,33496.0,33495.0,1.8778]
[1625274019805,6.40580329,33496.0,33495.0,1.9368]
[1625274019905,6.40580329,33496.0,33495.0,1.94338444]
[1625274020010,4.84771446,33496.0,33495.0,1.94338444]
[1625274020557,3.46272737,33496.0,33495.0,4.23549951]
[1625274021756,3.46272737,33496.0,33495.0,4.45320951]
[1625274022256,3.46272737,33496.0,33495.0,4.51220951]
[1625274022763,1.75054203,33496.0,33495.0,5.74634172]
[1625274022862,1.75054203,33496.0,33495.0,5.98691716]
[1625274023264,0.3470333,33496.0,33495.0,7.39732448]
[1625274026070,0.54026906,33498.0,33495.0,7.39732448]
[1625274026171,1.21418298,33500.0,33495.0,7.39732448]
[1625274026574,1.21559022,33502.0,33499.0,1.23405056]
[1625274026772,1.21559022,33502.0,33499.0,1.35205056]
[1625274026872,1.21559022,33502.0,33501.0,0.48115088]
[1625274026973,1.21559022,33502.0,33501.0,0.54015088]
[1625274027122,1.21559022,33502.0,33501.0,0.54672676]
[1625274027675,1.2151706,33503.0,33501.0,1.78074107]
[1625274028123,1.2151706,33503.0,33502.0,0.00657537]
[1625274028223,1.2151706,33503.0,33502.0,0.40792537]
[1625274028824,1.2151706,33503.0,33502.0,0.64850081]
[1625274029024,1.38922116,33504.0,33502.0,0.64850081]
[1625274029025,1.21571724,33504.0,33502.0,1.88234813]
[1625274029473,1.21571724,33504.0,33503.0,0.00657454]
[1625274029578,1.21571724,33504.0,33503.0,0.12457454]
[1625274029725,1.21615872,33506.0,33503.0,1.35835783]
[1625274030030,1.21633953,33507.0,33504.0,1.24021537]
[1625274030128,1.21633953,33507.0,33506.0,4.7741]
[1625274030282,1.21633953,33507.0,33506.0,4.8921]
[1625274030529,1.21666528,33508.0,33506.0,4.89867409]
[1625274030879,1.21666528,33508.0,33507.0,0.48772495]
[1625274030979,1.21666528,33508.0,33507.0,0.60572495]
[1625274031984,1.21685822,33509.0,33507.0,0.60572495]
[1625274032435,1.21685822,33509.0,33508.0,0.00657403]
[1625274032534,1.21685822,33509.0,33508.0,0.12457403]
[1625274032886,1.21685822,33509.0,33508.0,0.36514947]
[1625274036441,1.56473705,33515.0,33508.0,0.36514947]
[1625274036442,1.21659471,33510.0,33508.0,0.36514947]
[1625274036640,1.21659471,33510.0,33508.0,0.35857544]
[1625274038444,1.21661792,33511.0,33508.0,0.35857544]
[1625274038892,1.21661792,33511.0,33510.0,0.24057544]
[1625274039042,1.21661792,33511.0,33510.0,0.66096544]
[1625274039692,1.21679065,33512.0,33510.0,0.66096544]
[1625274040895,0.24057544,33521.0,33510.0,0.66096544]
[1625274040896,1.21590739,33513.0,33512.0,0.24057544]
[1625274041095,1.21590739,33513.0,33512.0,0.29957544]
[1625274043402,1.21569554,33514.0,33512.0,0.29957544]
[1625274044955,1.21569554,33514.0,33513.0,0.24057544]
[1625274045056,1.21569554,33514.0,33513.0,0.29957544]
[1625274046211,1.21500971,33515.0,33513.0,0.29957544]
[1625274049065,1.21522019,33516.0,33513.0,0.47534273]
[1625274049164,1.21522019,33516.0,33514.0,0.00659963]
[1625274049313,1.21522019,33516.0,33514.0,0.06559963]
[1625274049665,1.21522019,33516.0,33515.0,0.00659963]
[1625274049768,1.21522019,33516.0,33515.0,0.06559963]
[1625274050168,1.21579107,33517.0,33515.0,0.06559963]
[1625274050517,1.21579107,33517.0,33516.0,0.06559972]
[1625274050969,1.21579107,33517.0,33516.0,0.30617516]
[1625274051472,1.21579107,33517.0,33516.0,5.54217516]
[1625274056932,2.259603,33517.0,33516.0,5.54217516]
[1625274061196,2.259603,33517.0,33516.0,0.30617516]
[1625274061749,2.259603,33517.0,33516.0,5.19677516]
[1625274064656,2.259603,33517.0,33516.0,0.30617516]
[1625274065005,3.65554004,33517.0,33516.0,0.30617516]
[1625274065857,2.259603,33517.0,33516.0,0.30617516]
[1625274066258,3.6579483,33517.0,33516.0,0.30617516]
[1625274066709,3.6579483,33517.0,33516.0,0.36517516]
[1625274067058,2.259603,33517.0,33516.0,0.36517516]
[1625274069462,1.04381193,33517.0,33516.0,0.36517516]
[1625274069766,2.26853866,33517.0,33516.0,0.36517516]
[1625274070217,1.04381193,33517.0,33516.0,0.36517516]
[1625274073376,1.04994434,33518.0,33516.0,0.36517516]
[1625274073674,1.04994434,33518.0,33517.0,0.00665417]
[1625274073775,1.04994434,33518.0,33517.0,0.28515417]
[1625274073875,1.04994434,33518.0,33517.0,0.34415417]
[1625274074580,1.05034371,33519.0,33517.0,0.34415417]
[1625274074977,1.05034371,33519.0,33518.0,0.00666106]
[1625274075077,1.05034371,33519.0,33518.0,0.2472365]
[1625274075177,1.05034371,33519.0,33518.0,0.3652365]
[1625274076179,2.27581746,33519.0,33518.0,0.3652365]
[1625274076780,1.05034371,33519.0,33518.0,0.3652365]
[1625274078486,2.2766269,33519.0,33518.0,0.3652365]
[1625274078886,2.2766269,33519.0,33518.0,0.54104145]
[1625274080246,1.05034371,33519.0,33518.0,0.3652365]
[1625274080848,1.05034371,33519.0,33518.0,1.42084061]
[1625274081348,1.05034371,33519.0,33518.0,1.69753061]
[1625274082552,1.05034371,33519.0,33518.0,2.92962634]
[1625274082849,1.75297926,33519.0,33518.0,3.63368306]
[1625274084507,1.04797926,33519.0,33518.0,3.63368306]
[1625274084607,0.97497926,33519.0,33518.0,3.63368306]
[1625274084708,0.85397926,33519.0,33518.0,3.63368306]
[1625274084961,0.70263555,33519.0,33518.0,5.04196173]
[1625274085063,0.70237824,33520.0,33518.0,5.04196173]
[1625274085160,0.70237824,33520.0,33519.0,0.24057544]
[1625274085261,0.70237824,33520.0,33519.0,0.30623351]
[1625274085363,0.70237824,33520.0,33519.0,0.36523351]
[1625274085462,0.70232859,33521.0,33519.0,3.70979659]
[1625274085911,0.70232859,33521.0,33520.0,0.12465805]
[1625274086011,0.70232859,33521.0,33520.0,2.06123423]
[1625274087164,0.70232859,33521.0,33520.0,3.71022787]
[1625274087618,0.17585388,33522.0,33520.0,3.71022787]
[1625274088016,0.17585388,33522.0,33521.0,0.00665722]
[1625274088116,0.17585388,33522.0,33521.0,0.06565722]
[1625274088217,0.17585388,33522.0,33521.0,3.4691031]
[1625274091175,0.17587879,33523.0,33521.0,3.4691031]
[1625274091425,0.17587879,33523.0,33522.0,0.00665664]
[1625274091524,0.17587879,33523.0,33522.0,0.06565664]
[1625274091625,0.70285246,33524.0,33522.0,3.46850035]
[1625274091724,0.70285246,33524.0,33523.0,5.2247]
[1625274091926,0.70285246,33524.0,33523.0,7.27792125]
[1625274092025,0.70285246,33524.0,33523.0,7.28457792]
[1625274093228,0.70285246,33524.0,33523.0,7.52515336]
[1625274094079,0.70285246,33524.0,33523.0,7.61415336]
[1625274094282,0.17589809,33524.0,33523.0,9.02104375]
[1625274094782,0.17591011,33525.0,33523.0,9.02104375]
[1625274095133,0.17591011,33525.0,33524.0,0.00666174]
[1625274095232,0.17591011,33525.0,33524.0,0.24723718]
[1625274095333,0.17591011,33525.0,33524.0,0.36523718]
[1625274095434,0.17591011,33525.0,33524.0,2.29972696]
[1625274095933,0.1759831,33526.0,33524.0,2.29972696]
[1625274096184,0.1759831,33526.0,33525.0,0.0066617]
[1625274096284,0.1759831,33526.0,33525.0,0.3727417]
[1625274096384,0.1759831,33526.0,33525.0,0.4317417]
[1625274096786,0.70311323,33527.0,33525.0,2.36362002]
[1625274097237,0.70311323,33527.0,33526.0,0.24057544]
[1625274097338,0.70311323,33527.0,33526.0,0.36523677]
[1625274097638,0.17597639,33527.0,33526.0,2.29641193]
[1625274097991,0.17591324,33528.0,33526.0,2.29641193]
[1625274098087,0.17591324,33528.0,33527.0,4.007]
[1625274098187,0.17591324,33528.0,33527.0,4.066]
[1625274098287,0.17591324,33528.0,33527.0,4.125]
[1625274098388,0.17591324,33528.0,33527.0,6.06077016]
[1625274098890,0.17591324,33528.0,33527.0,4.83315545]
[1625274099192,0.17591324,33528.0,33527.0,5.07373089]
[1625274100994,0.17585726,33529.0,33527.0,5.07373089]
[1625274101294,0.17585726,33529.0,33528.0,0.00666121]
[1625274101394,0.17585726,33529.0,33528.0,0.76691579]
[1625274101496,0.70312576,33530.0,33528.0,0.82591579]
[1625274101805,0.70312576,33530.0,33529.0,0.70725179]
[1625274101903,0.70312576,33530.0,33529.0,0.82525179]
[1625274102154,0.70270786,33531.0,33529.0,0.82525179]
[1625274102604,0.70270786,33531.0,33530.0,0.00667017]
[1625274102705,0.70270786,33531.0,33530.0,0.2997263]
[1625274103258,0.70270786,33531.0,33530.0,0.54030174]
[1625274104310,0.70270786,33531.0,33530.0,0.36524561]
[1625274105010,0.70270786,33531.0,33530.0,0.64909561]
[1625274105915,0.70270786,33531.0,33530.0,0.82423398]
[1625274106616,1.5805639,33538.0,33530.0,0.64909561]
[1625274106714,1.5805639,33538.0,33532.0,4.7425]
[1625274106964,1.5805639,33538.0,33532.0,4.8015]
[1625274107063,1.5805639,33538.0,33533.0,0.00667012]
[1625274107163,1.5805639,33538.0,33533.0,0.06567012]
[1625274107264,1.5805639,33538.0,33537.0,0.48115088]
[1625274107365,1.5805639,33538.0,33537.0,0.69027088]
[1625274107466,1.5805639,33538.0,33537.0,0.74927088]
[1625274108167,1.5805639,33538.0,33537.0,0.75594068]
[1625274108267,3.33556681,33538.0,33537.0,0.75594068]
[1625274111421,1.57993142,33541.0,33537.0,0.75594068]
[1625274111821,0.24057544,33543.0,33537.0,0.75594068]
[1625274111822,3.33422491,33538.0,33537.0,0.74927088]
[1625274112122,3.33422491,33538.0,33537.0,0.75594062]
[1625274114630,1.93038691,33538.0,33537.0,0.75594062]
[1625274114980,2.98320978,33538.0,33537.0,0.75594062]
[1625274116735,3.50965554,33538.0,33537.0,0.75594062]
[1625274126850,3.50965554,33538.0,33537.0,0.74927088]
[1625274127000,3.50965554,33538.0,33537.0,0.75594697]
[1625274128353,3.50965554,33538.0,33537.0,5.28824697]
[1625274129209,2.28127536,33538.0,33537.0,5.28824697]
[1625274131167,2.28127536,33538.0,33537.0,5.3752186]
[1625274132013,2.28127536,33538.0,33537.0,5.54919215]
[1625274132566,2.28127536,33538.0,33537.0,1.01689215]
[1625274133420,2.28127536,33538.0,33537.0,5.60149215]
[1625274133668,1.22845249,33538.0,33537.0,5.86223409]
[1625274134068,1.22845249,33538.0,33537.0,6.55789663]
[1625274135876,1.22845249,33538.0,33537.0,1.97329663]
[1625274136576,1.22845249,33538.0,33537.0,5.56309663]
[1625274137126,0.2638886,33538.0,33537.0,6.60625076]
[1625274137577,0.2638886,33538.0,33537.0,3.01645076]
[1625274137878,0.52746598,33538.0,33537.0,3.01645076]
[1625274138229,0.1759384,33538.0,33537.0,3.01645076]
[1625274138378,0.1759384,33538.0,33537.0,8.24255076]
[1625274139884,0.52764793,33538.0,33537.0,9.45996888]
[1625274140785,0.52764793,33538.0,33537.0,8.24255076]
[1625274141836,0.52764793,33538.0,33537.0,9.45981444]
[1625274142940,0.26411289,33538.0,33537.0,9.45981444]
[1625274143742,0.17601665,33538.0,33537.0,10.85077995]
[1625274144646,0.26413156,33538.0,33537.0,10.85077995]
[1625274145799,0.17601665,33538.0,33537.0,9.45981444]
[1625274146349,0.88000404,33538.0,33537.0,10.85110262]
[1625274146749,0.88000404,33538.0,33537.0,10.91010262]
[1625274146901,0.52815183,33538.0,33537.0,10.91010262]
[1625274146999,0.46915183,33538.0,33537.0,11.35110262]
[1625274147100,0.46915183,33538.0,33537.0,11.42375164]
[1625274147202,0.44235183,33538.0,33537.0,11.42375164]
[1625274147405,0.26416835,33544.0,33537.0,12.98548382]
[1625274147501,0.26416835,33544.0,33543.0,0.48115088]
[1625274147601,0.26416835,33544.0,33543.0,0.59915088]
[1625274147952,0.7036868,33546.0,33543.0,0.59915088]
[1625274147953,0.08812332,33546.0,33543.0,7.02075988]
[1625274148152,0.08812332,33546.0,33544.0,0.00669653]
[1625274148253,0.05819407,33547.0,33544.0,0.28737653]
[1625274148353,0.14631744,33547.0,33545.0,4.85496975]
[1625274148452,0.14631744,33547.0,33545.0,4.97296975]
[1625274148703,0.14631744,33547.0,33546.0,0.00669602]
[1625274148806,0.08804844,33549.0,33548.0,5.2706]
[1625274148953,0.08804844,33549.0,33548.0,0.059]
[1625274149055,0.08804844,33549.0,33548.0,0.118]
[1625274149304,0.08804844,33549.0,33548.0,3.59297712]
[1625274149505,0.08804844,33549.0,33548.0,4.074128]
[1625274149605,0.08804844,33549.0,33548.0,8.842128]
[1625274149706,1.23066787,33550.0,33548.0,8.842128]
[1625274150004,1.23066787,33550.0,33549.0,0.00669581]
[1625274150154,1.23066787,33550.0,33549.0,0.12469581]
[1625274150359,1.23073818,33551.0,33549.0,3.53467812]
[1625274150807,1.23073818,33551.0,33549.0,3.59367812]
[1625274150908,1.23073818,33551.0,33549.0,3.53467812]
[1625274151058,0.70325385,33551.0,33550.0,1.27956916]
[1625274151508,0.70325385,33551.0,33550.0,1.5201446]
[1625274151610,2.28447951,33551.0,33550.0,0.82650292]
[1625274152764,1.22973476,33553.0,33550.0,0.82650292]
[1625274152765,1.22949346,33552.0,33550.0,2.55913252]
[1625274153165,0.5269459,33551.0,33550.0,0.99262728]
[1625274153468,0.5269459,33551.0,33550.0,1.51919761]
[1625274154370,1.2292859,33552.0,33550.0,1.51919761]
[1625274154820,1.2292859,33552.0,33551.0,0.00669276]
[1625274154924,1.2292859,33552.0,33551.0,0.35627276]
[1625274155573,1.2292859,33552.0,33551.0,0.5968482]
[1625274155977,0.52674329,33552.0,33551.0,1.80931664]
[1625274156075,1.22908614,33553.0,33551.0,1.80931664]
[1625274156427,1.22908614,33553.0,33552.0,0.00669241]
[1625274156529,0.52677628,33553.0,33552.0,0.15225817]
[1625274157433,0.52677628,33553.0,33552.0,0.21125817]
[1625274157580,0.52677628,33553.0,33552.0,4.41585817]
[1625274157831,0.08790089,33553.0,33552.0,4.84840618]
[1625274158032,0.02340089,33553.0,33552.0,4.84840618]
[1625274158334,0.37322897,33554.0,33552.0,4.84840618]
[1625274158637,1.05288071,33556.0,33552.0,5.54019092]
[1625274158638,0.52625156,33556.0,33552.0,5.54019092]
[1625274158835,0.52625156,33556.0,33553.0,0.00669195]
[1625274158985,0.52625156,33556.0,33553.0,0.12469195]
[1625274159335,0.52625156,33556.0,33554.0,0.00669191]
[1625274159539,0.70158848,33558.0,33554.0,0.81628124]
[1625274159639,0.70158848,33558.0,33557.0,0.48115088]
[1625274159737,0.70158848,33558.0,33557.0,0.59915088]
[1625274159941,0.70158848,33558.0,33557.0,0.60584282]
[1625274160542,0.70160551,33559.0,33557.0,0.60584282]
[1625274160992,0.70160551,33559.0,33558.0,0.31831176]
[1625274161092,0.70160551,33559.0,33558.0,0.37731176]
[1625274161595,0.70160551,33559.0,33558.0,0.6178872]
[1625274161696,0.7012271,33560.0,33558.0,0.6178872]
[1625274161845,0.7012271,33560.0,33558.0,0.61119544]
[1625274162250,0.70125083,33559.0,33558.0,0.61119544]
[1625274162752,0.70094655,33560.0,33558.0,0.61119544]
[1625274162999,0.70094696,33559.0,33558.0,0.61119544]
[1625274163301,0.70094696,33559.0,33558.0,0.61789093]
[1625274163751,0.70094303,33561.0,33558.0,0.61789093]
[1625274164150,0.70094303,33561.0,33558.0,0.61119544]
[1625274164453,0.70094303,33561.0,33559.0,0.00669496]
[1625274164701,0.70061003,33563.0,33559.0,0.00669496]
[1625274165302,0.70061003,33563.0,33559.0,0.06569496]
[1625274165453,0.70056548,33565.0,33559.0,0.06569496]
[1625274165654,0.70056548,33565.0,33564.0,0.48115088]
[1625274166157,0.70056548,33565.0,33564.0,0.54015088]
[1625274166256,0.70056548,33565.0,33564.0,0.54684688]
[1625274166608,1.05076067,33566.0,33564.0,0.54684688]
[1625274166709,0.70051511,33567.0,33564.0,0.54684688]
[1625274167060,0.70002254,33569.0,33564.0,0.54015088]
[1625274167209,0.75902254,33569.0,33564.0,0.54015088]
[1625274167408,0.75902254,33569.0,33564.0,0.48115088]
[1625274167561,0.70001999,33568.0,33564.0,0.48115088]
[1625274167709,0.75901999,33568.0,33567.0,0.48115088]
[1625274167857,0.75901999,33568.0,33567.0,0.73429088]
[1625274168159,1.80897182,33568.0,33567.0,0.73429088]
[1625274170059,0.75901999,33568.0,33567.0,0.73429088]
[1625274171760,1.80814175,33568.0,33567.0,0.73429088]
[1625274171858,1.80814175,33568.0,33567.0,0.48115088]
[1625274172662,1.80814175,33568.0,33567.0,0.76174088]
[1625274173163,0.75901999,33568.0,33567.0,0.76174088]
[1625274174413,0.059,33568.0,33567.0,0.76174088]
[1625274175112,0.75829864,33568.0,33567.0,0.76174088]
[1625274177520,0.75829864,33568.0,33567.0,0.76843255]
[1625274177871,0.75829864,33568.0,33567.0,0.48784255]
[1625274178071,0.75829864,33568.0,33567.0,0.48115088]
[1625274178072,0.81729864,33568.0,33567.0,0.48115088]
[1625274178372,0.059,33568.0,33567.0,0.48115088]
[1625274178675,1.80668499,33568.0,33567.0,0.48115088]
[1625274179026,1.86568499,33568.0,33567.0,0.48115088]
[1625274179126,0.81710894,33568.0,33567.0,0.48115088]
[1625274179227,0.81710894,33568.0,33567.0,0.69205088]
[1625274180180,1.86569343,33568.0,33567.0,0.69205088]
[1625274180479,1.86569343,33568.0,33567.0,0.69874261]
[1625274180681,1.86569343,33568.0,33567.0,0.69205088]
[1625274180782,0.81710894,33568.0,33567.0,0.69205088]
[1625274181334,1.86568166,33568.0,33567.0,0.69205088]
[1625274181787,1.86568166,33568.0,33567.0,0.69874286]
[1625274182038,1.86568166,33568.0,33567.0,0.69205088]
[1625274182138,2.13612166,33568.0,33557.0,0.057]
[1625274182239,2.13612166,33568.0,33557.0,0.059]
[1625274182350,2.13612166,33568.0,33552.0,3.21675164]
[1625274182438,2.13612166,33568.0,33552.0,3.15975164]
[1625274182638,2.13612166,33568.0,33556.0,0.00669779]
[1625274182741,0.69919161,33562.0,33556.0,0.00669779]
[1625274182842,4.81899161,33562.0,33556.0,0.00669779]
[1625274182940,4.93699161,33562.0,33556.0,0.00669779]
[1625274183144,1.00154706,33561.0,33553.0,0.00669851]
[1625274183242,1.06054706,33561.0,33553.0,0.00669851]
[1625274183341,1.11954706,33561.0,33553.0,0.00669851]
[1625274183443,0.69943931,33559.0,33553.0,0.00669851]
[1625274183642,0.75843931,33559.0,33553.0,0.00669851]
[1625274183741,0.96230176,33554.0,33553.0,0.00669851]
[1625274183843,1.30238176,33554.0,33553.0,0.00669851]
[1625274184243,1.36138176,33554.0,33553.0,0.00669851]
[1625274185344,1.36138176,33554.0,33546.0,0.24057544]
[1625274185792,0.68402088,33547.0,33544.0,0.69229043]
[1625274185894,0.68402088,33547.0,33543.0,1.03843564]
[1625274185895,0.68402088,33547.0,33543.0,0.69246484]
[1625274186096,0.68402088,33547.0,33545.0,0.00669351]
[1625274186347,0.68402088,33547.0,33544.0,0.00669355]
[1625274186545,0.68402088,33547.0,33546.0,0.00669355]
[1625274186896,0.68402088,33547.0,33544.0,0.69945124]
[1625274186998,0.68402088,33547.0,33544.0,0.75845124]
[1625274187097,0.48115088,33547.0,33545.0,0.0066936]
[1625274187347,0.48115088,33547.0,33545.0,0.2578736]
[1625274187548,0.48115088,33547.0,33546.0,3.7057]
[1625274187648,0.48115088,33547.0,33546.0,3.7123935]
[1625274187748,0.48115088,33547.0,33546.0,4.01196894]
[1625274188248,0.48115088,33547.0,33546.0,0.24726894]
[1625274188348,0.48115088,33547.0,33546.0,0.30626894]
[1625274188600,0.48115088,33547.0,33546.0,0.99911014]
[1625274188700,0.48115088,33547.0,33546.0,1.29405014]
[1625274189203,0.48115088,33547.0,33546.0,2.39184793]
[1625274190053,0.48115088,33547.0,33546.0,3.60300349]
[1625274190406,0.48115088,33547.0,33546.0,7.38000349]
[1625274190554,0.48115088,33547.0,33546.0,8.76421326]
[1625274191557,0.48115088,33554.0,33546.0,8.76421326]
[1625274191756,0.48115088,33554.0,33553.0,0.24057544]
[1625274191858,0.48115088,33554.0,33553.0,0.45681544]
[1625274191958,0.48115088,33554.0,33553.0,0.51581544]
[1625274192060,0.48115088,33554.0,33553.0,1.2075006]
[1625274192158,0.48115088,33554.0,33553.0,1.21419237]
[1625274192560,0.48115088,33554.0,33553.0,2.25194863]
[1625274195220,0.48115088,33554.0,33553.0,3.4655893]
[1625274196575,0.48115088,33554.0,33553.0,3.5245893]
[1625274198428,0.70117703,33561.0,33553.0,3.6146893]
[1625274198682,0.7016854,33563.0,33559.0,0.6950005]
[1625274198877,0.7016854,33563.0,33559.0,0.8130005]
[1625274199082,0.25,33566.0,33562.0,4.3348065]
[1625274199180,0.25,33566.0,33562.0,4.5457465]
[1625274199281,0.25,33566.0,33562.0,4.6637465]
[1625274199379,0.2114,33566.0,33562.0,4.6637465]
[1625274199480,0.08,33566.0,33562.0,4.6637465]
[1625274199581,0.0478,33566.0,33563.0,0.00668789]
[1625274199782,0.0478,33566.0,33565.0,3.66756056]
[1625274200032,0.0478,33566.0,33565.0,3.72656056]
[1625274200131,0.0478,33566.0,33565.0,3.73324836]
[1625274200382,0.0478,33566.0,33565.0,5.17747156]
[1625274200786,0.0478,33566.0,33565.0,5.17078376]
[1625274200983,0.0478,33566.0,33565.0,5.17747088]
[1625274201435,0.0478,33566.0,33565.0,6.7344856]
[1625274208498,0.0256,33566.0,33565.0,6.7344856]
[1625274208898,0.0131,33566.0,33565.0,6.7344856]
[1625274209199,0.0036,33566.0,33565.0,6.7344856]
[1625274209701,0.0036,33566.0,33565.0,7.0378356]
[1625274210051,0.24057544,33577.0,33565.0,7.0378356]
[1625274210551,0.24057544,33577.0,33566.0,0.00668673]
[1625274210651,0.24057544,33577.0,33566.0,0.12468673]
[1625274210955,0.24057544,33577.0,33567.0,0.00668668]
[1625274211053,0.24057544,33577.0,33567.0,0.06568668]